[Event "*** SCC Grand Prix: Titled Tuesday Blitz"]
[Site "Chess.com"]
[Date "2020.06.23"]
[Round "8"]
[White "Makswolf200817"]
[Black "aNaartjieZA"]
[Result "1-0"]
[WhiteElo "2438"]
[BlackElo "2561"]
[TimeControl "180+1"]
[EndTime "11:34:38 PDT"]
[Termination "Makswolf200817 won by resignation"]

1. Nf3 {[%clk 0:03:00.9]} 1... Nf6 {[%clk 0:02:59.8]} 2. c4 {[%clk 0:03:00.5]}
2... g6 {[%clk 0:02:59.4]} 3. g3 {[%clk 0:03:00.3]} 3... Bg7 {[%clk 0:02:59.3]}
4. Bg2 {[%clk 0:03:00.7]} 4... O-O {[%clk 0:02:59.9]} 5. O-O {[%clk 0:03:01]}
5... d6 {[%clk 0:03:00.5]} 6. d4 {[%clk 0:03:01.2]} 6... c6 {[%clk 0:03:01.1]}
7. Nc3 {[%clk 0:03:01.4]} 7... Qa5 {[%clk 0:03:01.5]} 8. e4 {[%clk 0:02:53.7]}
8... Bg4 {[%clk 0:03:00.6]} 9. h3 {[%clk 0:02:49.8]} 9... Bxf3 {[%clk
0:03:00.4]} 10. Bxf3 {[%clk 0:02:49.5]} 10... Nfd7 {[%clk 0:03:00.4]} 11. Be3
{[%clk 0:02:47.9]} 11... Qb4 {[%clk 0:02:59.1]} 12. Qb3 {[%clk 0:02:46.2]} 12...
Qxb3 {[%clk 0:02:54.4]} 13. axb3 {[%clk 0:02:47.1]} 13... Na6 {[%clk 0:02:53.5]}
14. Ra4 {[%clk 0:02:41.2]} 14... e5 {[%clk 0:02:49.3]} 15. d5 {[%clk 0:02:28.9]}
15... Nac5 {[%clk 0:02:45.5]} 16. Ra3 {[%clk 0:02:28.8]} 16... cxd5 {[%clk
0:02:37.2]} 17. Nxd5 {[%clk 0:02:22.8]} 17... a6 {[%clk 0:02:18.8]} 18. Rd1
{[%clk 0:02:10.4]} 18... Rfd8 {[%clk 0:01:56.7]} 19. b4 {[%clk 0:01:56.7]} 19...
Ne6 {[%clk 0:01:55.4]} 20. Bg4 {[%clk 0:01:56.9]} 20... Ndf8 {[%clk 0:01:11.2]}
21. Nb6 {[%clk 0:01:40.2]} 21... Rab8 {[%clk 0:01:08.4]} 22. b5 {[%clk
0:01:35.9]} 22... axb5 {[%clk 0:01:07.3]} 23. cxb5 {[%clk 0:01:36.8]} 23... h5
{[%clk 0:01:06]} 24. Bf3 {[%clk 0:01:34.4]} 24... Nd4 {[%clk 0:01:05.9]} 25.
Bxd4 {[%clk 0:01:33.5]} 25... exd4 {[%clk 0:01:05.8]} 26. Ra7 {[%clk 0:01:30.1]}
26... Ne6 {[%clk 0:01:05.2]} 27. b4 {[%clk 0:01:21.1]} 27... h4 {[%clk
0:01:01.7]} 28. gxh4 {[%clk 0:01:18.9]} 28... Nc7 {[%clk 0:00:40.2]} 29. Be2
{[%clk 0:01:16.1]} 29... Bf6 {[%clk 0:00:39.7]} 30. Kg2 {[%clk 0:01:09.4]} 30...
Kg7 {[%clk 0:00:37.5]} 31. Rc1 {[%clk 0:01:00.1]} 31... Ne6 {[%clk 0:00:36.3]}
32. Bg4 {[%clk 0:00:53]} 32... Nf4+ {[%clk 0:00:32.4]} 33. Kf3 {[%clk
0:00:52.6]} 33... Nd3 {[%clk 0:00:31.6]} 34. Rc7 {[%clk 0:00:43.9]} 34... Ne5+
{[%clk 0:00:31.4]} 35. Ke2 {[%clk 0:00:43]} 35... d3+ {[%clk 0:00:30.7]} 36. Kd2
{[%clk 0:00:41.3]} 36... Bg5+ {[%clk 0:00:30.5]} 37. hxg5 {[%clk 0:00:40.6]} 1-0

[Event "*** SCC Grand Prix: Titled Tuesday Blitz"]
[Site "Chess.com"]
[Date "2020.06.23"]
[Round "8"]
[White "Khvicha_Supatashvili"]
[Black "GigaQuparadze"]
[Result "0-1"]
[WhiteElo "2651"]
[BlackElo "2829"]
[TimeControl "180+1"]
[EndTime "11:34:40 PDT"]
[Termination "GigaQuparadze won on time"]

1. d4 {[%clk 0:03:00.9]} 1... Nf6 {[%clk 0:02:55.1]} 2. c4 {[%clk 0:03:00.2]}
2... e6 {[%clk 0:02:50.1]} 3. Nf3 {[%clk 0:02:59.2]} 3... b6 {[%clk 0:02:50.1]}
4. g3 {[%clk 0:02:55.6]} 4... Bb7 {[%clk 0:02:47.4]} 5. Bg2 {[%clk 0:02:55.4]}
5... g6 {[%clk 0:02:47.7]} 6. O-O {[%clk 0:02:54.4]} 6... Bg7 {[%clk 0:02:47.3]}
7. Nc3 {[%clk 0:02:49.5]} 7... Ne4 {[%clk 0:02:46.7]} 8. Nxe4 {[%clk 0:02:48.7]}
8... Bxe4 {[%clk 0:02:47.1]} 9. Bg5 {[%clk 0:02:48.5]} 9... Qc8 {[%clk
0:02:47.1]} 10. Qd2 {[%clk 0:02:46.8]} 10... O-O {[%clk 0:02:43.5]} 11. Bh6
{[%clk 0:02:44.8]} 11... d6 {[%clk 0:02:41.7]} 12. Bxg7 {[%clk 0:02:43.9]} 12...
Kxg7 {[%clk 0:02:42.6]} 13. c5 {[%clk 0:02:33.9]} 13... Nc6 {[%clk 0:02:37.9]}
14. Rac1 {[%clk 0:01:49.7]} 14... Qd7 {[%clk 0:02:36.5]} 15. cxd6 {[%clk
0:01:46.6]} 15... cxd6 {[%clk 0:02:35.9]} 16. Ne1 {[%clk 0:01:31.4]} 16... Bxg2
{[%clk 0:02:26.9]} 17. Nxg2 {[%clk 0:01:29.4]} 17... Ne7 {[%clk 0:02:22]} 18.
Nf4 {[%clk 0:01:26.7]} 18... Rac8 {[%clk 0:02:18.3]} 19. Nd3 {[%clk 0:01:23.9]}
19... Nf5 {[%clk 0:02:10.7]} 20. e3 {[%clk 0:01:22.6]} 20... Qb5 {[%clk
0:02:09.1]} 21. Rc3 {[%clk 0:01:12.8]} 21... Qa5 {[%clk 0:01:58.8]} 22. Rfc1
{[%clk 0:01:05.7]} 22... Rxc3 {[%clk 0:01:54.9]} 23. Qxc3 {[%clk 0:00:36]} 23...
Qxa2 {[%clk 0:01:53.6]} 24. e4 {[%clk 0:00:35.8]} 24... Nh6 {[%clk 0:01:46.9]}
25. f4 {[%clk 0:00:12.7]} 25... Kg8 {[%clk 0:01:40.8]} 26. h3 {[%clk 0:00:10.8]}
26... Qa6 {[%clk 0:01:39.1]} 27. Nb4 {[%clk 0:00:10.1]} 27... Qe2 {[%clk
0:01:38.3]} 28. Re1 {[%clk 0:00:09.3]} 28... Qb5 {[%clk 0:01:36]} 29. d5 {[%clk
0:00:09.6]} 29... Qc5+ {[%clk 0:01:21.9]} 30. Qxc5 {[%clk 0:00:09.2]} 30... bxc5
{[%clk 0:01:22.8]} 31. Nc6 {[%clk 0:00:09.8]} 31... exd5 {[%clk 0:01:23.3]} 32.
exd5 {[%clk 0:00:09.6]} 32... Nf5 {[%clk 0:01:23.4]} 33. g4 {[%clk 0:00:07.5]}
33... Nd4 {[%clk 0:01:23.3]} 34. Nxd4 {[%clk 0:00:06.3]} 34... cxd4 {[%clk
0:01:24.2]} 35. Rd1 {[%clk 0:00:05]} 35... Rb8 {[%clk 0:01:24.2]} 36. Rxd4
{[%clk 0:00:05]} 36... Rxb2 {[%clk 0:01:24.1]} 37. Ra4 {[%clk 0:00:05.4]} 37...
Rb5 {[%clk 0:01:20.3]} 38. Rxa7 {[%clk 0:00:04.3]} 38... Rxd5 {[%clk 0:01:20.4]}
39. Kf2 {[%clk 0:00:04.2]} 39... h5 {[%clk 0:01:19.6]} 40. g5 {[%clk 0:00:02.8]}
40... Rd3 {[%clk 0:01:18.4]} 41. Kg2 {[%clk 0:00:02.9]} 41... Kf8 {[%clk
0:01:15.6]} 0-1

[Event "*** SCC Grand Prix: Titled Tuesday Blitz"]
[Site "Chess.com"]
[Date "2020.06.23"]
[Round "8"]
[White "vova-79"]
[Black "fabianvivasz"]
[Result "1-0"]
[WhiteElo "2413"]
[BlackElo "2276"]
[TimeControl "180+1"]
[EndTime "11:34:41 PDT"]
[Termination "vova-79 won on time"]

1. d4 {[%clk 0:03:00.9]} 1... Nf6 {[%clk 0:02:59.5]} 2. c4 {[%clk 0:03:00.5]}
2... g6 {[%clk 0:02:59.9]} 3. Nc3 {[%clk 0:02:59.4]} 3... d5 {[%clk 0:03:00.4]}
4. Nf3 {[%clk 0:02:59.9]} 4... Bg7 {[%clk 0:03:00.4]} 5. Bf4 {[%clk 0:03:00.5]}
5... c5 {[%clk 0:02:50.9]} 6. dxc5 {[%clk 0:02:59.9]} 6... Ne4 {[%clk
0:02:43.8]} 7. Nxe4 {[%clk 0:02:44.6]} 7... dxe4 {[%clk 0:02:44.7]} 8. Qxd8+
{[%clk 0:02:43.3]} 8... Kxd8 {[%clk 0:02:45.6]} 9. O-O-O+ {[%clk 0:02:33.7]}
9... Ke8 {[%clk 0:02:42.2]} 10. Nd2 {[%clk 0:02:26.7]} 10... Na6 {[%clk
0:02:20.6]} 11. Nxe4 {[%clk 0:02:21.6]} 11... Bf5 {[%clk 0:02:20.6]} 12. Ng3
{[%clk 0:02:20.5]} 12... Nxc5 {[%clk 0:01:51.9]} 13. Nxf5 {[%clk 0:02:14.7]}
13... gxf5 {[%clk 0:01:52.8]} 14. Rd5 {[%clk 0:01:38.5]} 14... Rc8 {[%clk
0:01:43.6]} 15. e3 {[%clk 0:01:30.9]} 15... e6 {[%clk 0:01:21.8]} 16. Rd2 {[%clk
0:01:30.2]} 16... h5 {[%clk 0:00:23.9]} 17. h4 {[%clk 0:01:20.2]} 17... Ne4
{[%clk 0:00:21.4]} 18. Rc2 {[%clk 0:01:18.3]} 18... e5 {[%clk 0:00:19]} 19. Bh2
{[%clk 0:01:13.9]} 19... Bf6 {[%clk 0:00:09.5]} 20. Bd3 {[%clk 0:01:09.8]} 20...
Nd6 {[%clk 0:00:02.2]} 21. c5 {[%clk 0:01:02.6]} 21... Ne4 {[%clk 0:00:02]} 22.
f3 {[%clk 0:01:01.9]} 22... Nxc5 {[%clk 0:00:02]} 23. Bxf5 {[%clk 0:01:01.1]}
23... Rc7 {[%clk 0:00:02]} 24. Bg3 {[%clk 0:00:39.7]} 1-0

[Event "*** SCC Grand Prix: Titled Tuesday Blitz"]
[Site "Chess.com"]
[Date "2020.06.23"]
[Round "8"]
[White "viktorskliarov"]
[Black "Andrii_Prydun"]
[Result "1-0"]
[WhiteElo "2548"]
[BlackElo "2390"]
[TimeControl "180+1"]
[EndTime "11:34:43 PDT"]
[Termination "viktorskliarov won by resignation"]

1. e4 {[%clk 0:03:00.9]} 1... d5 {[%clk 0:03:00.2]} 2. exd5 {[%clk 0:03:00.8]}
2... Qxd5 {[%clk 0:03:01.1]} 3. Nc3 {[%clk 0:03:01.4]} 3... Qd6 {[%clk
0:03:01.6]} 4. d4 {[%clk 0:03:01.6]} 4... c6 {[%clk 0:03:02.2]} 5. Nf3 {[%clk
0:03:02]} 5... Bg4 {[%clk 0:03:02.6]} 6. h3 {[%clk 0:02:57.6]} 6... Bxf3 {[%clk
0:03:02.6]} 7. Qxf3 {[%clk 0:02:57.8]} 7... Qxd4 {[%clk 0:03:02.9]} 8. Be3
{[%clk 0:02:51]} 8... Qd8 {[%clk 0:03:02.2]} 9. Rd1 {[%clk 0:02:46.3]} 9... Nd7
{[%clk 0:03:01.9]} 10. Bc4 {[%clk 0:02:33]} 10... e6 {[%clk 0:03:01.3]} 11. Ne4
{[%clk 0:02:32.7]} 11... Ngf6 {[%clk 0:03:00.6]} 12. Nd6+ {[%clk 0:01:44.6]}
12... Bxd6 {[%clk 0:03:00.3]} 13. Rxd6 {[%clk 0:01:43.4]} 13... Qe7 {[%clk
0:03:00.8]} 14. Qd1 {[%clk 0:01:22.2]} 14... Nd5 {[%clk 0:02:43.8]} 15. Rxd5
{[%clk 0:00:53]} 15... exd5 {[%clk 0:02:43.9]} 16. Be2 {[%clk 0:00:52.6]} 16...
O-O {[%clk 0:02:43.5]} 17. O-O {[%clk 0:00:53]} 17... Rfe8 {[%clk 0:02:42.7]}
18. Qd4 {[%clk 0:00:47.6]} 18... Qe5 {[%clk 0:02:42.3]} 19. Qb4 {[%clk
0:00:47.3]} 19... d4 {[%clk 0:02:40]} 20. Bg4 {[%clk 0:00:33]} 20... f5 {[%clk
0:02:40.2]} 21. Bxd4 {[%clk 0:00:28.4]} 21... Qe6 {[%clk 0:02:13.6]} 22. Bf3
{[%clk 0:00:25.4]} 22... b6 {[%clk 0:01:36.9]} 23. Bc3 {[%clk 0:00:25.1]} 23...
Rad8 {[%clk 0:01:30.5]} 24. Re1 {[%clk 0:00:22.3]} 24... Qf7 {[%clk 0:00:47.6]}
25. Rxe8+ {[%clk 0:00:18.1]} 25... Rxe8 {[%clk 0:00:47.2]} 26. Bxc6 {[%clk
0:00:18.1]} 26... Rd8 {[%clk 0:00:42.1]} 27. Qd6 {[%clk 0:00:16.3]} 27... h6
{[%clk 0:00:20.8]} 28. Bd5 {[%clk 0:00:15.5]} 1-0

[Event "*** SCC Grand Prix: Titled Tuesday Blitz"]
[Site "Chess.com"]
[Date "2020.06.23"]
[Round "8"]
[White "mshuaau0"]
[Black "GianmarcoVaR"]
[Result "0-1"]
[WhiteElo "2191"]
[BlackElo "2374"]
[TimeControl "180+1"]
[EndTime "11:34:45 PDT"]
[Termination "GianmarcoVaR won on time"]

1. e4 {[%clk 0:02:46.3]} 1... c5 {[%clk 0:02:58.7]} 2. Nf3 {[%clk 0:02:45.1]}
2... d6 {[%clk 0:02:58.6]} 3. d4 {[%clk 0:02:44.7]} 3... cxd4 {[%clk 0:02:59.2]}
4. Nxd4 {[%clk 0:02:44.7]} 4... Nf6 {[%clk 0:02:59.8]} 5. Nc3 {[%clk 0:02:44]}
5... a6 {[%clk 0:03:00.3]} 6. Bg5 {[%clk 0:02:42.5]} 6... Nbd7 {[%clk
0:02:59.8]} 7. Qd2 {[%clk 0:02:40]} 7... e6 {[%clk 0:02:55.5]} 8. O-O-O {[%clk
0:02:39.4]} 8... Be7 {[%clk 0:02:55.8]} 9. Kb1 {[%clk 0:02:34.3]} 9... O-O
{[%clk 0:02:55.7]} 10. f3 {[%clk 0:02:33.7]} 10... Qc7 {[%clk 0:02:54.9]} 11. h4
{[%clk 0:02:32.1]} 11... b5 {[%clk 0:02:55]} 12. g4 {[%clk 0:02:30.2]} 12... b4
{[%clk 0:02:55]} 13. Nce2 {[%clk 0:02:28.2]} 13... Ne5 {[%clk 0:02:48.9]} 14.
Bxf6 {[%clk 0:02:26.1]} 14... Bxf6 {[%clk 0:02:48.4]} 15. g5 {[%clk 0:02:25.8]}
15... Be7 {[%clk 0:02:48.5]} 16. Ng3 {[%clk 0:02:03.5]} 16... Bb7 {[%clk
0:01:57.7]} 17. h5 {[%clk 0:01:56.6]} 17... d5 {[%clk 0:01:56.5]} 18. exd5
{[%clk 0:01:32.3]} 18... Bxd5 {[%clk 0:01:43.4]} 19. Ne4 {[%clk 0:01:31.8]}
19... Nxf3 {[%clk 0:01:35.4]} 20. Nxf3 {[%clk 0:01:17.5]} 20... Bxe4 {[%clk
0:01:35.7]} 21. Bg2 {[%clk 0:01:04.3]} 21... Qb7 {[%clk 0:01:16]} 22. g6 {[%clk
0:00:55.4]} 22... Bf6 {[%clk 0:00:47.1]} 23. gxh7+ {[%clk 0:00:36.9]} 23... Kh8
{[%clk 0:00:46.6]} 24. Qe3 {[%clk 0:00:31.4]} 24... Rac8 {[%clk 0:00:42.2]} 25.
Rc1 {[%clk 0:00:30.1]} 25... Rc3 {[%clk 0:00:41]} 26. Qf4 {[%clk 0:00:25.7]}
26... b3 {[%clk 0:00:32.6]} 0-1

[Event "*** SCC Grand Prix: Titled Tuesday Blitz"]
[Site "Chess.com"]
[Date "2020.06.23"]
[Round "8"]
[White "hectorfiori"]
[Black "politeplayer"]
[Result "0-1"]
[WhiteElo "2303"]
[BlackElo "2180"]
[TimeControl "180+1"]
[EndTime "11:34:45 PDT"]
[Termination "politeplayer won by resignation"]

1. e4 {[%clk 0:03:00.9]} 1... e6 {[%clk 0:03:00]} 2. Nf3 {[%clk 0:03:01]} 2...
c5 {[%clk 0:02:57.4]} 3. d4 {[%clk 0:03:00.5]} 3... cxd4 {[%clk 0:02:57.6]} 4.
Nxd4 {[%clk 0:03:01.4]} 4... Nc6 {[%clk 0:02:57.2]} 5. Nc3 {[%clk 0:03:01.2]}
5... Qc7 {[%clk 0:02:56.4]} 6. Ndb5 {[%clk 0:03:01.3]} 6... Qb8 {[%clk
0:02:53.5]} 7. Be3 {[%clk 0:03:01.8]} 7... a6 {[%clk 0:02:53.6]} 8. Bb6 {[%clk
0:03:01.4]} 8... axb5 {[%clk 0:02:50.7]} 9. Nxb5 {[%clk 0:03:02.3]} 9... Bb4+
{[%clk 0:02:50.7]} 10. c3 {[%clk 0:03:02.8]} 10... Ba5 {[%clk 0:02:50.9]} 11.
Nc7+ {[%clk 0:03:03.3]} 11... Qxc7 {[%clk 0:02:51.3]} 12. Bxc7 {[%clk
0:03:04.2]} 12... Bxc7 {[%clk 0:02:51.5]} 13. Qg4 {[%clk 0:03:04.7]} 13... g6
{[%clk 0:02:49.7]} 14. Bb5 {[%clk 0:03:05]} 14... Nge7 {[%clk 0:02:36.2]} 15.
O-O {[%clk 0:02:57.9]} 15... h5 {[%clk 0:02:27]} 16. Qe2 {[%clk 0:02:57.4]}
16... h4 {[%clk 0:02:24.8]} 17. h3 {[%clk 0:02:55.7]} 17... Rh5 {[%clk
0:02:21.4]} 18. a4 {[%clk 0:02:55.6]} 18... Kf8 {[%clk 0:02:13.8]} 19. b4 {[%clk
0:02:53.9]} 19... d5 {[%clk 0:02:12.8]} 20. Rad1 {[%clk 0:02:42.9]} 20... dxe4
{[%clk 0:01:57.7]} 21. Qxe4 {[%clk 0:02:43.8]} 21... Nd5 {[%clk 0:01:57.3]} 22.
Qc2 {[%clk 0:02:36.9]} 22... Rg5 {[%clk 0:01:49.5]} 23. Kh1 {[%clk 0:02:24.9]}
23... Nf4 {[%clk 0:01:26.9]} 24. Bxc6 {[%clk 0:02:11.3]} 24... bxc6 {[%clk
0:01:24.5]} 25. Qe4 {[%clk 0:02:11.4]} 25... Rxa4 {[%clk 0:00:59.8]} 26. Qxc6
{[%clk 0:02:08.8]} 26... Ra7 {[%clk 0:01:00]} 27. b5 {[%clk 0:02:05.4]} 27...
Bb7 {[%clk 0:00:58.2]} 28. Rd8+ {[%clk 0:01:20.3]} 28... Kg7 {[%clk 0:00:56.4]}
29. Qxc7 {[%clk 0:01:00.9]} 29... Bxg2+ {[%clk 0:00:52.6]} 30. Kh2 {[%clk
0:01:01.4]} 30... Rxc7 {[%clk 0:00:50]} 31. Rc1 {[%clk 0:00:58.5]} 31... Ne2
{[%clk 0:00:40.3]} 32. b6 {[%clk 0:00:51.6]} 32... Bf3 {[%clk 0:00:22.9]} 33.
bxc7 {[%clk 0:00:40.7]} 33... Rg2+ {[%clk 0:00:21.8]} 34. Kh1 {[%clk 0:00:41]}
34... Rg1+ {[%clk 0:00:20.6]} 35. Kh2 {[%clk 0:00:41.1]} 35... Rxc1 {[%clk
0:00:19.3]} 36. Rg8+ {[%clk 0:00:41]} 36... Kxg8 {[%clk 0:00:19.1]} 37. c8=Q+
{[%clk 0:00:41]} 37... Kg7 {[%clk 0:00:19]} 0-1

[Event "*** SCC Grand Prix: Titled Tuesday Blitz"]
[Site "Chess.com"]
[Date "2020.06.23"]
[Round "8"]
[White "baby_leo"]
[Black "rududuyk"]
[Result "1-0"]
[WhiteElo "1970"]
[BlackElo "2124"]
[TimeControl "180+1"]
[EndTime "11:34:49 PDT"]
[Termination "baby_leo won on time"]

1. Nf3 {[%clk 0:03:00.9]} 1... e6 {[%clk 0:02:59.7]} 2. d4 {[%clk 0:02:59.6]}
2... f5 {[%clk 0:03:00]} 3. g3 {[%clk 0:02:54.7]} 3... Nf6 {[%clk 0:03:00.3]} 4.
Bg2 {[%clk 0:02:54.5]} 4... Be7 {[%clk 0:03:00.3]} 5. O-O {[%clk 0:02:55]} 5...
O-O {[%clk 0:03:00.7]} 6. b3 {[%clk 0:02:55.1]} 6... d6 {[%clk 0:03:00.8]} 7.
Bb2 {[%clk 0:02:55.4]} 7... Qe8 {[%clk 0:02:55.7]} 8. Nbd2 {[%clk 0:02:50.3]}
8... Qh5 {[%clk 0:02:43.8]} 9. Re1 {[%clk 0:02:33.9]} 9... Ne4 {[%clk
0:02:36.6]} 10. Rf1 {[%clk 0:02:13.7]} 10... Bf6 {[%clk 0:02:27.7]} 11. c4
{[%clk 0:02:06.3]} 11... a5 {[%clk 0:02:13.8]} 12. Qc2 {[%clk 0:02:01.2]} 12...
Nxd2 {[%clk 0:02:02.2]} 13. Qxd2 {[%clk 0:02:02.1]} 13... Nd7 {[%clk 0:01:56.5]}
14. Ne1 {[%clk 0:01:52.9]} 14... e5 {[%clk 0:01:45.2]} 15. Nd3 {[%clk
0:01:33.8]} 15... g5 {[%clk 0:01:13.8]} 16. dxe5 {[%clk 0:01:24]} 16... dxe5
{[%clk 0:01:08.5]} 17. Qe3 {[%clk 0:00:54.6]} 17... e4 {[%clk 0:00:35.2]} 18.
Bxf6 {[%clk 0:00:50.5]} 18... Nxf6 {[%clk 0:00:33.4]} 19. Ne5 {[%clk 0:00:42.5]}
19... Ra6 {[%clk 0:00:14.1]} 20. f3 {[%clk 0:00:36.2]} 20... Re6 {[%clk
0:00:08.9]} 21. f4 {[%clk 0:00:16.2]} 21... Ng4 {[%clk 0:00:03.9]} 22. Nxg4
{[%clk 0:00:15.2]} 22... fxg4 {[%clk 0:00:03.9]} 23. fxg5 {[%clk 0:00:13.9]} 1-0

[Event "*** SCC Grand Prix: Titled Tuesday Blitz"]
[Site "Chess.com"]
[Date "2020.06.23"]
[Round "8"]
[White "MYMChessAcademy"]
[Black "larbiben"]
[Result "0-1"]
[WhiteElo "2198"]
[BlackElo "2035"]
[TimeControl "180+1"]
[EndTime "11:34:54 PDT"]
[Termination "larbiben won by checkmate"]

1. e4 {[%clk 0:03:00.9]} 1... e6 {[%clk 0:02:58]} 2. d4 {[%clk 0:02:59.8]} 2...
d5 {[%clk 0:02:56.5]} 3. Nc3 {[%clk 0:02:59]} 3... Nf6 {[%clk 0:02:54.8]} 4. e5
{[%clk 0:02:58.8]} 4... Nfd7 {[%clk 0:02:53.5]} 5. f4 {[%clk 0:02:58.5]} 5... c5
{[%clk 0:02:53.7]} 6. Nf3 {[%clk 0:02:58]} 6... Nc6 {[%clk 0:02:53.6]} 7. Be3
{[%clk 0:02:57.4]} 7... Qb6 {[%clk 0:02:46.6]} 8. Na4 {[%clk 0:02:57]} 8... Qa5+
{[%clk 0:02:45.5]} 9. c3 {[%clk 0:02:56.9]} 9... cxd4 {[%clk 0:02:40.3]} 10. b4
{[%clk 0:02:56.2]} 10... Qc7 {[%clk 0:02:37.5]} 11. Nxd4 {[%clk 0:02:55.7]}
11... a6 {[%clk 0:02:28.8]} 12. Be2 {[%clk 0:02:45]} 12... b5 {[%clk 0:02:22.9]}
13. Nb2 {[%clk 0:02:44]} 13... Nb6 {[%clk 0:02:05.6]} 14. Bd3 {[%clk 0:02:37.9]}
14... Nc4 {[%clk 0:01:56.2]} 15. Nxc4 {[%clk 0:02:37.1]} 15... dxc4 {[%clk
0:01:52]} 16. Be2 {[%clk 0:02:31.5]} 16... Bb7 {[%clk 0:01:51.4]} 17. O-O {[%clk
0:02:24.5]} 17... Be7 {[%clk 0:01:51]} 18. Bf3 {[%clk 0:02:22.4]} 18... O-O
{[%clk 0:01:48.3]} 19. Nxc6 {[%clk 0:02:01.8]} 19... Bxc6 {[%clk 0:01:46.7]} 20.
Bxc6 {[%clk 0:02:02.7]} 20... Qxc6 {[%clk 0:01:45.8]} 21. Qh5 {[%clk 0:02:02]}
21... Qe4 {[%clk 0:01:41.1]} 22. Rf3 {[%clk 0:01:54.2]} 22... Qg6 {[%clk
0:01:30.6]} 23. Qxg6 {[%clk 0:01:41.6]} 23... hxg6 {[%clk 0:01:29.7]} 24. Rd1
{[%clk 0:01:41.7]} 24... Rfd8 {[%clk 0:01:29.7]} 25. Rff1 {[%clk 0:01:40.3]}
25... Kf8 {[%clk 0:01:09.4]} 26. Bb6 {[%clk 0:01:36.3]} 26... Rdb8 {[%clk
0:01:02.1]} 27. Bc7 {[%clk 0:01:31.2]} 27... Rc8 {[%clk 0:00:57.3]} 28. Bd6
{[%clk 0:01:30.7]} 28... Ke8 {[%clk 0:00:54.4]} 29. Rd2 {[%clk 0:01:21.8]} 29...
a5 {[%clk 0:00:51.7]} 30. a3 {[%clk 0:01:18.5]} 30... axb4 {[%clk 0:00:51.1]}
31. axb4 {[%clk 0:01:19.4]} 31... Ra3 {[%clk 0:00:50.7]} 32. Rfd1 {[%clk
0:01:11.2]} 32... Rxc3 {[%clk 0:00:45.4]} 33. Bxe7 {[%clk 0:01:10.4]} 33... Kxe7
{[%clk 0:00:44.6]} 34. Rd7+ {[%clk 0:01:10.7]} 34... Kf8 {[%clk 0:00:41.6]} 35.
Rb7 {[%clk 0:01:06]} 35... Rd3 {[%clk 0:00:41.5]} 36. Ra1 {[%clk 0:01:04.1]}
36... Kg8 {[%clk 0:00:34.9]} 37. Rc1 {[%clk 0:00:58.7]} 37... Rd5 {[%clk
0:00:33.5]} 38. g4 {[%clk 0:00:57.1]} 38... Rcd8 {[%clk 0:00:32.9]} 39. Kg2
{[%clk 0:00:55.3]} 39... Rd2+ {[%clk 0:00:31.8]} 40. Kg3 {[%clk 0:00:55.7]}
40... R8d3+ {[%clk 0:00:31]} 41. Kh4 {[%clk 0:00:56]} 41... Rxh2+ {[%clk
0:00:31]} 42. Kg5 {[%clk 0:00:56.5]} 42... Rg3 {[%clk 0:00:20.8]} 43. Rd1 {[%clk
0:00:47.2]} 43... Rh5# {[%clk 0:00:18]} 0-1